[Event "Betsys MČR v online bleskovém šachu 2021"]
[Site "Chess.com"]
[Date "2021.04.17"]
[Round "11"]
[White "EDA16"]
[Black "Nevimjakhrat"]
[Result "0-1"]
[WhiteElo "1141"]
[BlackElo "1448"]
[TimeControl "180+1"]
[EndTime "10:50:57 PDT"]
[Termination "Uživatel Nevimjakhrat zvítězil na čas"]

1. d4 {[%clk 0:03:00.9]} 1... Nf6 {[%clk 0:02:43.3]} 2. c4 {[%clk 0:02:59.4]}
2... e6 {[%clk 0:02:43.6]} 3. Nc3 {[%clk 0:02:59.1]} 3... Bb4 {[%clk 0:02:44.3]}
4. Qc2 {[%clk 0:02:58]} 4... b6 {[%clk 0:02:44.1]} 5. Bg5 {[%clk 0:02:56.6]}
5... Bb7 {[%clk 0:02:42]} 6. e4 {[%clk 0:02:47.7]} 6... h6 {[%clk 0:02:37.2]} 7.
Bxf6 {[%clk 0:02:46]} 7... Qxf6 {[%clk 0:02:35.9]} 8. Nf3 {[%clk 0:02:35.7]}
8... d6 {[%clk 0:02:29.2]} 9. Bd3 {[%clk 0:02:34.5]} 9... Nd7 {[%clk 0:02:28.4]}
10. O-O {[%clk 0:02:33.2]} 10... O-O {[%clk 0:02:24.2]} 11. a3 {[%clk
0:02:32.6]} 11... Bxc3 {[%clk 0:02:23.7]} 12. Qxc3 {[%clk 0:02:31.3]} 12... Qe7
{[%clk 0:02:16.5]} 13. Rfe1 {[%clk 0:02:31.2]} 13... e5 {[%clk 0:02:15.1]} 14.
d5 {[%clk 0:02:30]} 14... Nc5 {[%clk 0:02:09.8]} 15. Bc2 {[%clk 0:02:25.2]}
15... c6 {[%clk 0:02:09.4]} 16. b4 {[%clk 0:02:24.7]} 16... Na6 {[%clk
0:02:02.5]} 17. Rad1 {[%clk 0:02:18.7]} 17... cxd5 {[%clk 0:02:01.2]} 18. cxd5
{[%clk 0:02:15.4]} 18... Rac8 {[%clk 0:01:55.6]} 19. Qb2 {[%clk 0:02:13.6]}
19... Nc7 {[%clk 0:01:50.5]} 20. Bb3 {[%clk 0:02:06.3]} 20... Nb5 {[%clk
0:01:45.4]} 21. a4 {[%clk 0:02:04.7]} 21... Nc7 {[%clk 0:01:41.3]} 22. Rc1
{[%clk 0:02:02.2]} 22... b5 {[%clk 0:01:35]} 23. a5 {[%clk 0:02:00.9]} 23... Na6
{[%clk 0:01:28.3]} 24. Rxc8 {[%clk 0:01:56]} 24... Rxc8 {[%clk 0:01:29.2]} 25.
Rc1 {[%clk 0:01:54.4]} 25... Rxc1+ {[%clk 0:01:25.4]} 26. Qxc1 {[%clk
0:01:53.7]} 26... Nxb4 {[%clk 0:01:26.3]} 27. Qd2 {[%clk 0:01:28.6]} 27... Na6
{[%clk 0:01:23]} 28. Qe3 {[%clk 0:01:21.7]} 28... Qc7 {[%clk 0:01:14.2]} 29. h3
{[%clk 0:01:17.5]} 29... Nc5 {[%clk 0:01:12.8]} 30. Bd1 {[%clk 0:01:10.7]} 30...
Qxa5 {[%clk 0:01:12.2]} 31. Be2 {[%clk 0:01:07.6]} 31... b4 {[%clk 0:01:10.8]}
32. Nh4 {[%clk 0:00:51.2]} 32... b3 {[%clk 0:01:03.3]} 33. Bd3 {[%clk
0:00:45.1]} 33... Nxd3 {[%clk 0:00:54.4]} 34. Qxd3 {[%clk 0:00:45.1]} 34... Qe1+
{[%clk 0:00:54.8]} 35. Kh2 {[%clk 0:00:43.9]} 35... b2 {[%clk 0:00:55.7]} 36.
Nf3 {[%clk 0:00:39.1]} 36... Qxf2 {[%clk 0:00:48.3]} 37. Qd2 {[%clk 0:00:34]}
37... Qxd2 {[%clk 0:00:41.3]} 38. Nxd2 {[%clk 0:00:33.6]} 38... Ba6 {[%clk
0:00:41.7]} 39. Kg3 {[%clk 0:00:27.8]} 39... Bd3 {[%clk 0:00:41.5]} 40. Kf3
{[%clk 0:00:26.4]} 40... b1=Q {[%clk 0:00:39.6]} 41. Nxb1 {[%clk 0:00:25.5]}
41... Bxb1 {[%clk 0:00:40.5]} 42. g4 {[%clk 0:00:24.1]} 42... a5 {[%clk
0:00:40.8]} 43. Ke3 {[%clk 0:00:22.6]} 43... a4 {[%clk 0:00:41.4]} 44. Kd2
{[%clk 0:00:21.8]} 44... a3 {[%clk 0:00:41.9]} 45. Kc3 {[%clk 0:00:21.2]} 45...
a2 {[%clk 0:00:42.2]} 46. Kb2 {[%clk 0:00:21.1]} 46... Bxe4 {[%clk 0:00:39.8]}
47. Kxa2 {[%clk 0:00:21.2]} 47... Bxd5+ {[%clk 0:00:40.7]} 48. Kb2 {[%clk
0:00:19.8]} 48... Bg2 {[%clk 0:00:41.6]} 49. h4 {[%clk 0:00:17.2]} 49... Bh3
{[%clk 0:00:39.7]} 50. g5 {[%clk 0:00:16.7]} 50... hxg5 {[%clk 0:00:40.1]} 51.
hxg5 {[%clk 0:00:16.2]} 51... g6 {[%clk 0:00:39.3]} 52. Kc3 {[%clk 0:00:14.7]}
52... Kf8 {[%clk 0:00:37.4]} 53. Kc4 {[%clk 0:00:13.8]} 53... Ke7 {[%clk
0:00:38.3]} 54. Kd5 {[%clk 0:00:13.7]} 54... Bf5 {[%clk 0:00:34]} 55. Kc4 {[%clk
0:00:11.3]} 55... Ke6 {[%clk 0:00:34.9]} 56. Kb5 {[%clk 0:00:09.7]} 56... e4
{[%clk 0:00:35.1]} 57. Kc4 {[%clk 0:00:09.1]} 57... e3 {[%clk 0:00:36]} 58. Kc3
{[%clk 0:00:08.8]} 58... e2 {[%clk 0:00:30.7]} 59. Kd2 {[%clk 0:00:08.6]} 59...
Bg4 {[%clk 0:00:31.2]} 60. Ke1 {[%clk 0:00:06.6]} 60... Ke5 {[%clk 0:00:30.9]}
61. Kf2 {[%clk 0:00:06]} 61... Ke4 {[%clk 0:00:30.6]} 62. Ke1 {[%clk 0:00:04.4]}
62... Kf3 {[%clk 0:00:28.4]} 63. Kd2 {[%clk 0:00:03.4]} 63... Kf2 {[%clk
0:00:29.3]} 64. Kd3 {[%clk 0:00:02.9]} 64... e1=Q {[%clk 0:00:30.2]} 65. Kc2
{[%clk 0:00:02.2]} 65... Ke3 {[%clk 0:00:29]} 0-1

[Event "Betsys MČR v online bleskovém šachu 2021"]
[Site "Chess.com"]
[Date "2021.04.17"]
[Round "11"]
[White "Petulak08"]
[Black "kominekmart"]
[Result "0-1"]
[WhiteElo "1158"]
[BlackElo "1548"]
[TimeControl "180+1"]
[EndTime "10:50:59 PDT"]
[Termination "Uživatel kominekmart zvítězil na čas"]

1. e4 {[%clk 0:02:55.2]} 1... d6 {[%clk 0:02:59.4]} 2. d4 {[%clk 0:02:54.5]}
2... g6 {[%clk 0:02:59.3]} 3. f4 {[%clk 0:02:53.3]} 3... Nf6 {[%clk 0:02:58.3]}
4. e5 {[%clk 0:02:48.7]} 4... dxe5 {[%clk 0:02:48.6]} 5. fxe5 {[%clk 0:02:48.2]}
5... Nd5 {[%clk 0:02:48.5]} 6. c4 {[%clk 0:02:46.3]} 6... Nb6 {[%clk 0:02:45]}
7. Nc3 {[%clk 0:02:42.9]} 7... Bg7 {[%clk 0:02:43.8]} 8. Nf3 {[%clk 0:02:39.5]}
8... O-O {[%clk 0:02:43.3]} 9. Bg5 {[%clk 0:02:36]} 9... h6 {[%clk 0:02:40.5]}
10. Bh4 {[%clk 0:02:35.1]} 10... Bg4 {[%clk 0:02:31.5]} 11. h3 {[%clk
0:02:34.2]} 11... Bxf3 {[%clk 0:02:27.6]} 12. gxf3 {[%clk 0:02:34.3]} 12... Qd7
{[%clk 0:02:23.4]} 13. Qd3 {[%clk 0:02:15.5]} 13... c5 {[%clk 0:02:15.7]} 14.
dxc5 {[%clk 0:02:12.8]} 14... Qxd3 {[%clk 0:02:13.7]} 15. Bxd3 {[%clk
0:02:12.1]} 15... N6d7 {[%clk 0:02:08.3]} 16. Bxe7 {[%clk 0:02:12]} 16... Re8
{[%clk 0:02:07.7]} 17. Bd6 {[%clk 0:02:12.2]} 17... Nxe5 {[%clk 0:02:00.8]} 18.
Bxe5 {[%clk 0:01:58.2]} 18... Bxe5 {[%clk 0:01:53.2]} 19. Kf2 {[%clk 0:01:51.7]}
19... Bd4+ {[%clk 0:01:51.2]} 20. Kg2 {[%clk 0:01:48.9]} 20... Re3 {[%clk
0:01:49.2]} 21. Be4 {[%clk 0:01:44.1]} 21... Nc6 {[%clk 0:01:47.6]} 22. Nd5
{[%clk 0:01:40.2]} 22... Bxb2 {[%clk 0:01:39.6]} 23. Nxe3 {[%clk 0:01:38.5]}
23... Bxa1 {[%clk 0:01:39.1]} 24. Rxa1 {[%clk 0:01:38.6]} 24... Nd4 {[%clk
0:01:36.7]} 25. Rd1 {[%clk 0:01:36.2]} 25... Ne2 {[%clk 0:01:34.1]} 26. Nd5
{[%clk 0:01:26.8]} 26... Rc8 {[%clk 0:01:28]} 27. Kf2 {[%clk 0:01:26.2]} 27...
Rxc5 {[%clk 0:01:26.8]} 28. Kxe2 {[%clk 0:01:25.6]} 28... Rxc4 {[%clk 0:01:26]}
29. Kd3 {[%clk 0:01:17.1]} 29... Rc5 {[%clk 0:01:21.7]} 30. Kd4 {[%clk
0:01:15.6]} 30... b6 {[%clk 0:01:21.2]} 31. Rb1 {[%clk 0:01:10.4]} 31... Ra5
{[%clk 0:01:18.8]} 32. Rb2 {[%clk 0:01:07.9]} 32... Ra4+ {[%clk 0:01:17.2]} 33.
Kc3 {[%clk 0:01:00.3]} 33... Ra5 {[%clk 0:01:15.3]} 34. Nb4 {[%clk 0:00:52.3]}
34... Rc5+ {[%clk 0:01:11.7]} 35. Kd2 {[%clk 0:00:49.1]} 35... Kg7 {[%clk
0:01:09.8]} 36. Nd5 {[%clk 0:00:46.3]} 36... Ra5 {[%clk 0:01:06.9]} 37. Nb4
{[%clk 0:00:44.4]} 37... Rc5 {[%clk 0:01:05.7]} 38. Rc2 {[%clk 0:00:44.1]} 38...
Rh5 {[%clk 0:01:04.8]} 39. Rc7 {[%clk 0:00:38.9]} 39... Rxh3 {[%clk 0:01:03.7]}
40. Rxa7 {[%clk 0:00:39]} 40... Rh2+ {[%clk 0:01:03]} 41. Ke3 {[%clk 0:00:39.1]}
41... Rh4 {[%clk 0:01:02.3]} 42. Bd5 {[%clk 0:00:37.1]} 42... Kf6 {[%clk
0:00:57.5]} 43. Rxf7+ {[%clk 0:00:36.3]} 43... Ke5 {[%clk 0:00:57.1]} 44. f4+
{[%clk 0:00:33.5]} 44... Kd6 {[%clk 0:00:55.5]} 45. Rf6+ {[%clk 0:00:21.2]}
45... Kc5 {[%clk 0:00:54.2]} 46. Rxg6 {[%clk 0:00:17.2]} 46... Kxb4 {[%clk
0:00:53.5]} 47. Be6 {[%clk 0:00:16.7]} 47... Rh3+ {[%clk 0:00:52.4]} 48. Ke4
{[%clk 0:00:15.8]} 48... Rh1 {[%clk 0:00:49.5]} 49. Rg3 {[%clk 0:00:12.3]} 49...
Re1+ {[%clk 0:00:48.5]} 50. Re3 {[%clk 0:00:12.3]} 50... Rh1 {[%clk 0:00:45.8]}
51. Kf5 {[%clk 0:00:11.4]} 51... h5 {[%clk 0:00:44.9]} 52. Kg5 {[%clk
0:00:11.3]} 52... h4 {[%clk 0:00:44.7]} 53. Bg4 {[%clk 0:00:09.9]} 53... Kc4
{[%clk 0:00:41.1]} 54. Rh3 {[%clk 0:00:09.7]} 54... Ra1 {[%clk 0:00:38.8]} 55.
Be6+ {[%clk 0:00:07.8]} 55... Kd4 {[%clk 0:00:36.9]} 56. Rxh4 {[%clk 0:00:08.1]}
56... Rg1+ {[%clk 0:00:35.6]} 57. Rg4 {[%clk 0:00:07.3]} 57... Re1 {[%clk
0:00:34.9]} 58. f5+ {[%clk 0:00:06.7]} 58... Ke5 {[%clk 0:00:31]} 59. Bc8 {[%clk
0:00:05.9]} 59... b5 {[%clk 0:00:29.8]} 60. f6 {[%clk 0:00:05.6]} 60... Rf1
{[%clk 0:00:28.6]} 61. f7 {[%clk 0:00:01.4]} 61... Rxf7 {[%clk 0:00:27.5]} 62.
Kh4 {[%clk 0:00:01.5]} 62... Rh7+ {[%clk 0:00:26.5]} 63. Kg3 {[%clk 0:00:01.8]}
63... Rh8 {[%clk 0:00:26.1]} 64. Bb7 {[%clk 0:00:01.1]} 64... Rb8 {[%clk
0:00:25.5]} 0-1

[Event "Betsys MČR v online bleskovém šachu 2021"]
[Site "Chess.com"]
[Date "2021.04.17"]
[Round "11"]
[White "fortale"]
[Black "PetrSoucek"]
[Result "1-0"]
[WhiteElo "2303"]
[BlackElo "2010"]
[TimeControl "180+1"]
[EndTime "10:51:00 PDT"]
[Termination "Uživatel fortale zvítězil matem"]

1. e4 {[%clk 0:03:00.9]} 1... c5 {[%clk 0:02:58.2]} 2. Nf3 {[%clk 0:03:00.8]}
2... d6 {[%clk 0:02:57.9]} 3. d4 {[%clk 0:03:01.1]} 3... cxd4 {[%clk 0:02:58.8]}
4. Nxd4 {[%clk 0:03:02]} 4... Nf6 {[%clk 0:02:59.2]} 5. Nc3 {[%clk 0:03:02.4]}
5... g6 {[%clk 0:02:59.8]} 6. Be3 {[%clk 0:03:02.1]} 6... Bg7 {[%clk 0:03:00.3]}
7. f3 {[%clk 0:03:02.5]} 7... O-O {[%clk 0:03:00.9]} 8. Qd2 {[%clk 0:03:03.1]}
8... Nc6 {[%clk 0:03:01.5]} 9. Bc4 {[%clk 0:03:01.2]} 9... Bd7 {[%clk
0:03:01.5]} 10. O-O-O {[%clk 0:03:00.5]} 10... Rb8 {[%clk 0:03:01.9]} 11. h4
{[%clk 0:02:46.8]} 11... b5 {[%clk 0:02:56.7]} 12. Be2 {[%clk 0:02:45.9]} 12...
b4 {[%clk 0:02:50.6]} 13. Nd5 {[%clk 0:02:45.9]} 13... Qa5 {[%clk 0:02:37.1]}
14. Nxf6+ {[%clk 0:02:25]} 14... Bxf6 {[%clk 0:02:38]} 15. Kb1 {[%clk
0:02:25.2]} 15... Nxd4 {[%clk 0:02:08.3]} 16. Bxd4 {[%clk 0:02:25]} 16... Be6
{[%clk 0:02:08.4]} 17. b3 {[%clk 0:02:17.5]} 17... Rfc8 {[%clk 0:01:36.5]} 18.
Bxf6 {[%clk 0:02:13.1]} 18... exf6 {[%clk 0:01:34.6]} 19. h5 {[%clk 0:02:04.5]}
19... g5 {[%clk 0:01:33]} 20. Bd3 {[%clk 0:02:02.3]} 20... Rc5 {[%clk
0:01:25.1]} 21. f4 {[%clk 0:02:00.2]} 21... Qa3 {[%clk 0:01:01.7]} 22. Qc1
{[%clk 0:01:42.3]} 22... Qxc1+ {[%clk 0:00:56.1]} 23. Kxc1 {[%clk 0:01:42.3]}
23... a5 {[%clk 0:00:56.2]} 24. Rdf1 {[%clk 0:01:36.8]} 24... a4 {[%clk
0:00:53.1]} 25. Kb2 {[%clk 0:01:37]} 25... Rc3 {[%clk 0:00:32.5]} 26. fxg5
{[%clk 0:01:17.6]} 26... fxg5 {[%clk 0:00:33.4]} 27. Rf3 {[%clk 0:01:04.5]}
27... g4 {[%clk 0:00:30.7]} 28. Rg3 {[%clk 0:01:01.9]} 28... Kg7 {[%clk
0:00:26.8]} 29. h6+ {[%clk 0:01:00.9]} 29... Kf6 {[%clk 0:00:24.7]} 30. Rh5
{[%clk 0:00:59.9]} 30... axb3 {[%clk 0:00:20.9]} 31. axb3 {[%clk 0:00:58.8]}
31... Kg6 {[%clk 0:00:12.3]} 32. Ra5 {[%clk 0:00:57.2]} 32... Kf6 {[%clk
0:00:09.2]} 33. Re3 {[%clk 0:00:57.2]} 33... Rbc8 {[%clk 0:00:05.8]} 34. Rb5
{[%clk 0:00:54.7]} 34... Kg6 {[%clk 0:00:03.7]} 35. Rxb4 {[%clk 0:00:53.7]}
35... Kxh6 {[%clk 0:00:04]} 36. Rb6 {[%clk 0:00:52.2]} 36... Kg5 {[%clk
0:00:04.3]} 37. Rxd6 {[%clk 0:00:51.1]} 37... Kf4 {[%clk 0:00:04.5]} 38. Re1
{[%clk 0:00:50.3]} 38... h5 {[%clk 0:00:04]} 39. Rf1+ {[%clk 0:00:48.7]} 39...
Kg3 {[%clk 0:00:04.3]} 40. Rh1 {[%clk 0:00:48]} 40... h4 {[%clk 0:00:03.9]} 41.
Rd8 {[%clk 0:00:38.2]} 41... Rxc2+ {[%clk 0:00:01.8]} 42. Bxc2 {[%clk
0:00:36.8]} 42... Rxd8 {[%clk 0:00:02.7]} 43. Kc3 {[%clk 0:00:35.7]} 43... h3
{[%clk 0:00:03.2]} 44. gxh3 {[%clk 0:00:35.1]} 44... gxh3 {[%clk 0:00:04.1]} 45.
e5 {[%clk 0:00:34.3]} 45... Kg2 {[%clk 0:00:04.5]} 46. Be4+ {[%clk 0:00:34.2]}
46... Kg3 {[%clk 0:00:05]} 47. Rg1+ {[%clk 0:00:32.8]} 47... Kf2 {[%clk
0:00:04.6]} 48. Rh1 {[%clk 0:00:32.4]} 48... Rb8 {[%clk 0:00:04.2]} 49. b4
{[%clk 0:00:32.2]} 49... Rc8+ {[%clk 0:00:04.9]} 50. Kd4 {[%clk 0:00:32.5]}
50... Rd8+ {[%clk 0:00:05]} 51. Kc5 {[%clk 0:00:32.2]} 51... Ke3 {[%clk
0:00:04.9]} 52. Bc6 {[%clk 0:00:31.4]} 52... Kf4 {[%clk 0:00:05.2]} 53. Re1
{[%clk 0:00:29.2]} 53... h2 {[%clk 0:00:03.1]} 54. b5 {[%clk 0:00:29.5]} 54...
Bd7 {[%clk 0:00:01.8]} 55. Rh1 {[%clk 0:00:28.4]} 55... Bxc6 {[%clk 0:00:02.1]}
56. bxc6 {[%clk 0:00:27.8]} 56... Kxe5 {[%clk 0:00:02.5]} 57. Rxh2 {[%clk
0:00:26.5]} 57... f5 {[%clk 0:00:02.1]} 58. Re2+ {[%clk 0:00:25.6]} 58... Kf4
{[%clk 0:00:02.1]} 59. c7 {[%clk 0:00:24.7]} 59... Rc8 {[%clk 0:00:01.9]} 60.
Kd6 {[%clk 0:00:24.9]} 60... Kf3 {[%clk 0:00:02.8]} 61. Ra2 {[%clk 0:00:24]}
61... Rxc7 {[%clk 0:00:03.7]} 62. Kxc7 {[%clk 0:00:23.7]} 62... f4 {[%clk
0:00:04.6]} 63. Kd6 {[%clk 0:00:23.8]} 63... Ke3 {[%clk 0:00:05.5]} 64. Ke5
{[%clk 0:00:23.4]} 64... f3 {[%clk 0:00:06.4]} 65. Ra3+ {[%clk 0:00:24]} 65...
Ke2 {[%clk 0:00:06.8]} 66. Ke4 {[%clk 0:00:23.3]} 66... f2 {[%clk 0:00:07.3]}
67. Ra2+ {[%clk 0:00:23.7]} 67... Ke1 {[%clk 0:00:07.8]} 68. Ke3 {[%clk
0:00:22.7]} 68... f1=Q {[%clk 0:00:08.3]} 69. Ra1# {[%clk 0:00:22.5]} 1-0

[Event "Betsys MČR v online bleskovém šachu 2021"]
[Site "Chess.com"]
[Date "2021.04.17"]
[Round "11"]
[White "FaceOfLightning"]
[Black "krystofkrizek1"]
[Result "0-1"]
[WhiteElo "1937"]
[BlackElo "2139"]
[TimeControl "180+1"]
[EndTime "10:51:00 PDT"]
[Termination "Uživatel krystofkrizek1 zvítězil na čas"]

1. Nf3 {[%clk 0:02:55.2]} 1... b6 {[%clk 0:02:58.5]} 2. b3 {[%clk 0:02:52.8]}
2... Bb7 {[%clk 0:02:59]} 3. e3 {[%clk 0:02:52.8]} 3... Nf6 {[%clk 0:02:59.7]}
4. Bb2 {[%clk 0:02:52.4]} 4... d6 {[%clk 0:02:57.6]} 5. d4 {[%clk 0:02:51]} 5...
e6 {[%clk 0:02:57.1]} 6. Nbd2 {[%clk 0:02:50.5]} 6... Be7 {[%clk 0:02:57.4]} 7.
Bd3 {[%clk 0:02:49.8]} 7... O-O {[%clk 0:02:57.3]} 8. O-O {[%clk 0:02:48.6]}
8... Nbd7 {[%clk 0:02:55.6]} 9. c4 {[%clk 0:02:47.7]} 9... c5 {[%clk 0:02:55.7]}
10. Qc2 {[%clk 0:02:46.6]} 10... h6 {[%clk 0:02:54.1]} 11. Rac1 {[%clk
0:02:44.4]} 11... a5 {[%clk 0:02:51.1]} 12. a3 {[%clk 0:02:42]} 12... Bc6 {[%clk
0:02:34.7]} 13. e4 {[%clk 0:02:31.1]} 13... a4 {[%clk 0:02:28.1]} 14. d5 {[%clk
0:02:27.7]} 14... axb3 {[%clk 0:02:21.5]} 15. Qxb3 {[%clk 0:02:21.9]} 15... Ba4
{[%clk 0:02:14.9]} 16. Qc3 {[%clk 0:02:21.4]} 16... e5 {[%clk 0:02:07.4]} 17.
Bc2 {[%clk 0:02:13.9]} 17... Bxc2 {[%clk 0:01:41.9]} 18. Qxc2 {[%clk 0:02:09.5]}
18... Nh5 {[%clk 0:01:41.3]} 19. g3 {[%clk 0:02:07.1]} 19... Nhf6 {[%clk
0:01:27.2]} 20. Nh4 {[%clk 0:02:05.5]} 20... Qc7 {[%clk 0:01:24.3]} 21. Nf5
{[%clk 0:02:04.7]} 21... Rfe8 {[%clk 0:01:21.4]} 22. Ra1 {[%clk 0:01:56]} 22...
Bf8 {[%clk 0:01:18.3]} 23. a4 {[%clk 0:01:53.1]} 23... Nb8 {[%clk 0:01:10.8]}
24. Bc3 {[%clk 0:01:48.4]} 24... Nbd7 {[%clk 0:00:51.7]} 25. a5 {[%clk 0:01:44]}
25... bxa5 {[%clk 0:00:51.7]} 26. Ra2 {[%clk 0:01:37.4]} 26... Ra7 {[%clk
0:00:40]} 27. Rfa1 {[%clk 0:01:36.3]} 27... Rea8 {[%clk 0:00:40]} 28. Ra4 {[%clk
0:01:35.8]} 28... Qd8 {[%clk 0:00:29.5]} 29. Nb3 {[%clk 0:01:34.3]} 29... Nb6
{[%clk 0:00:26.8]} 30. Rxa5 {[%clk 0:01:30.2]} 30... Rxa5 {[%clk 0:00:21.8]} 31.
Nxa5 {[%clk 0:01:25.3]} 31... Qb8 {[%clk 0:00:20.5]} 32. Nc6 {[%clk 0:01:20.4]}
32... Rxa1+ {[%clk 0:00:20.3]} 33. Bxa1 {[%clk 0:01:20.2]} 33... Qa8 {[%clk
0:00:20.7]} 34. Bb2 {[%clk 0:00:41.7]} 34... Qa4 {[%clk 0:00:20.9]} 35. Qxa4
{[%clk 0:00:37.9]} 35... Nxa4 {[%clk 0:00:21.8]} 36. Ba3 {[%clk 0:00:35.7]}
36... Nb6 {[%clk 0:00:21]} 37. Ne3 {[%clk 0:00:35.2]} 37... Nxe4 {[%clk
0:00:20.8]} 38. Bc1 {[%clk 0:00:26.1]} 38... g6 {[%clk 0:00:20]} 39. Kg2 {[%clk
0:00:24.5]} 39... f5 {[%clk 0:00:20]} 40. f3 {[%clk 0:00:23]} 40... Nf6 {[%clk
0:00:20.5]} 41. Nc2 {[%clk 0:00:20]} 41... Nxc4 {[%clk 0:00:20.3]} 42. Kf2
{[%clk 0:00:19.1]} 42... Nxd5 {[%clk 0:00:20.4]} 43. Nd8 {[%clk 0:00:15.3]}
43... Ncb6 {[%clk 0:00:18.9]} 44. Ne6 {[%clk 0:00:14]} 44... Kf7 {[%clk
0:00:18.3]} 45. Nd8+ {[%clk 0:00:11.8]} 45... Ke8 {[%clk 0:00:18.1]} 46. Nc6
{[%clk 0:00:11.7]} 46... Kd7 {[%clk 0:00:18.6]} 47. Na5 {[%clk 0:00:11]} 47...
Nb4 {[%clk 0:00:17.8]} 48. Nxb4 {[%clk 0:00:08.9]} 48... cxb4 {[%clk 0:00:18.7]}
49. Bb2 {[%clk 0:00:08.7]} 49... Ke6 {[%clk 0:00:17.9]} 50. Ke3 {[%clk
0:00:08.2]} 50... d5 {[%clk 0:00:18.1]} 51. Kd3 {[%clk 0:00:07.9]} 51... e4+
{[%clk 0:00:17.4]} 52. fxe4 {[%clk 0:00:07.5]} 52... dxe4+ {[%clk 0:00:16.1]}
53. Ke2 {[%clk 0:00:07.1]} 53... Bd6 {[%clk 0:00:16.3]} 54. Bd4 {[%clk
0:00:05.8]} 54... Nd5 {[%clk 0:00:15.4]} 55. Nb3 {[%clk 0:00:04.9]} 55... Be5
{[%clk 0:00:14.9]} 56. Bc5 {[%clk 0:00:04.3]} 56... Nc3+ {[%clk 0:00:13.5]} 57.
Ke3 {[%clk 0:00:04]} 57... Nd5+ {[%clk 0:00:14.4]} 58. Ke2 {[%clk 0:00:03.7]}
58... g5 {[%clk 0:00:15.2]} 59. Nd4+ {[%clk 0:00:02]} 59... Bxd4 {[%clk
0:00:14.8]} 60. Bxd4 {[%clk 0:00:01.9]} 60... f4 {[%clk 0:00:15.5]} 61. gxf4
{[%clk 0:00:01.3]} 61... gxf4 {[%clk 0:00:16.4]} 62. Kf2 {[%clk 0:00:01.2]}
62... Kf5 {[%clk 0:00:16.9]} 0-1

[Event "Betsys MČR v online bleskovém šachu 2021"]
[Site "Chess.com"]
[Date "2021.04.17"]
[Round "11"]
[White "Smetanka674"]
[Black "Pantata007"]
[Result "0-1"]
[WhiteElo "1774"]
[BlackElo "2239"]
[TimeControl "180+1"]
[EndTime "10:51:01 PDT"]
[Termination "Uživatel Pantata007 zvítězil na čas"]

1. d4 {[%clk 0:03:00.9]} 1... d5 {[%clk 0:02:51.2]} 2. c4 {[%clk 0:02:59.4]}
2... c6 {[%clk 0:02:50.6]} 3. Nc3 {[%clk 0:02:57.9]} 3... Nf6 {[%clk 0:02:50]}
4. Nf3 {[%clk 0:02:57.3]} 4... e6 {[%clk 0:02:49.4]} 5. e3 {[%clk 0:02:56]} 5...
Nbd7 {[%clk 0:02:48.9]} 6. Bd3 {[%clk 0:02:55.8]} 6... dxc4 {[%clk 0:02:47.1]}
7. Bxc4 {[%clk 0:02:55.2]} 7... b5 {[%clk 0:02:47.6]} 8. Bd3 {[%clk 0:02:55.2]}
8... Bd6 {[%clk 0:02:48]} 9. O-O {[%clk 0:02:54.7]} 9... O-O {[%clk 0:02:48.4]}
10. Ne4 {[%clk 0:02:54.5]} 10... Be7 {[%clk 0:02:45.1]} 11. b3 {[%clk
0:02:51.8]} 11... Bb7 {[%clk 0:02:44]} 12. Bb2 {[%clk 0:02:44]} 12... Nxe4
{[%clk 0:02:40.8]} 13. Bxe4 {[%clk 0:02:42.9]} 13... Nf6 {[%clk 0:02:41.3]} 14.
Bc2 {[%clk 0:02:38.3]} 14... c5 {[%clk 0:02:39.1]} 15. Rc1 {[%clk 0:02:36.1]}
15... Rc8 {[%clk 0:02:37.5]} 16. Qe2 {[%clk 0:02:31.5]} 16... a6 {[%clk
0:02:34]} 17. Rfd1 {[%clk 0:02:23.8]} 17... Qb6 {[%clk 0:02:34.4]} 18. dxc5
{[%clk 0:02:18.1]} 18... Bxc5 {[%clk 0:02:34]} 19. h3 {[%clk 0:02:14.3]} 19...
Nd5 {[%clk 0:02:22.9]} 20. Qd3 {[%clk 0:02:11.2]} 20... g6 {[%clk 0:02:13.8]}
21. a3 {[%clk 0:02:01.9]} 21... b4 {[%clk 0:02:07.5]} 22. a4 {[%clk 0:01:59.8]}
22... Rfd8 {[%clk 0:02:06.5]} 23. Qe2 {[%clk 0:01:48.9]} 23... a5 {[%clk
0:01:58.1]} 24. Ne5 {[%clk 0:01:48.5]} 24... Nc3 {[%clk 0:01:49.1]} 25. Rxd8+
{[%clk 0:01:45.4]} 25... Rxd8 {[%clk 0:01:44.9]} 26. Bxc3 {[%clk 0:01:43.2]}
26... bxc3 {[%clk 0:01:44.4]} 27. Qc4 {[%clk 0:01:35.2]} 27... Bb4 {[%clk
0:01:16.7]} 28. Be4 {[%clk 0:01:11.2]} 28... Bxe4 {[%clk 0:00:46.6]} 29. Qxe4
{[%clk 0:01:10.2]} 29... Qd6 {[%clk 0:00:41.2]} 30. Nc4 {[%clk 0:00:59.3]} 30...
Qd5 {[%clk 0:00:28.4]} 31. Qxd5 {[%clk 0:00:57.2]} 31... exd5 {[%clk 0:00:21.4]}
32. Ne5 {[%clk 0:00:52.8]} 32... d4 {[%clk 0:00:14.1]} 33. exd4 {[%clk
0:00:49.5]} 33... Rxd4 {[%clk 0:00:13.5]} 34. Kf1 {[%clk 0:00:47.2]} 34... Rd2
{[%clk 0:00:12.6]} 35. Nc4 {[%clk 0:00:40.4]} 35... Ra2 {[%clk 0:00:05.6]} 36.
Ke1 {[%clk 0:00:37.9]} 36... Kg7 {[%clk 0:00:04.8]} 37. g4 {[%clk 0:00:32.3]}
37... h5 {[%clk 0:00:04.4]} 38. g5 {[%clk 0:00:28.3]} 38... f6 {[%clk
0:00:04.1]} 39. f4 {[%clk 0:00:26.9]} 39... fxg5 {[%clk 0:00:03.8]} 40. fxg5
{[%clk 0:00:26.5]} 40... Rh2 {[%clk 0:00:04.7]} 41. Kd1 {[%clk 0:00:19.8]} 41...
Rxh3 {[%clk 0:00:04.5]} 42. Kc2 {[%clk 0:00:18.1]} 42... Rg3 {[%clk 0:00:04.3]}
43. Ne5 {[%clk 0:00:11]} 43... Rxg5 {[%clk 0:00:04]} 44. Nd3 {[%clk 0:00:10.9]}
44... Rg2+ {[%clk 0:00:03.9]} 45. Kb1 {[%clk 0:00:10.1]} 45... h4 {[%clk
0:00:03.1]} 46. Nf4 {[%clk 0:00:09.7]} 46... Rg4 {[%clk 0:00:02.7]} 47. Ne2
{[%clk 0:00:09.3]} 47... g5 {[%clk 0:00:02.8]} 48. Nxc3 {[%clk 0:00:09.2]} 48...
Bxc3 {[%clk 0:00:02.6]} 49. Rxc3 {[%clk 0:00:09.3]} 49... Rg3 {[%clk 0:00:02.9]}
50. Rc7+ {[%clk 0:00:05.3]} 50... Kg6 {[%clk 0:00:02.9]} 51. Kc2 {[%clk
0:00:05.8]} 51... h3 {[%clk 0:00:02.7]} 52. Rc8 {[%clk 0:00:04.1]} 52... g4
{[%clk 0:00:01.9]} 53. Rh8 {[%clk 0:00:03.8]} 53... Rg2+ {[%clk 0:00:02]} 54.
Kd3 {[%clk 0:00:03.5]} 54... Kg5 {[%clk 0:00:02.9]} 55. Ke3 {[%clk 0:00:03.2]}
55... Rb2 {[%clk 0:00:03.2]} 0-1